bitfinex-derivatives/quotes_BTCF0:USTF0_20250704
["timestamp","ask_amount","ask_price","bid_price","bid_amount"]
[1751655035370,1.85319599,107740.0,107730.0,0.37644782]
[1751655035766,1.47319599,107740.0,107730.0,0.37644782]
[1751655038062,1.50589599,107740.0,107730.0,0.37644782]
[1751655039074,1.50589599,107740.0,107730.0,0.37644164]
[1751655039566,1.83169132,107740.0,107730.0,0.09913754]
[1751655039772,2.15169132,107740.0,107730.0,0.11286648]
[1751655040174,2.15169132,107740.0,107730.0,0.09433188]
[1751655041171,2.15169132,107740.0,107730.0,0.09443394]
[1751655043578,2.15169132,107740.0,107730.0,0.06738472]
[1751655044380,2.15769132,107740.0,107730.0,0.12296565]
[1751655044675,2.15769132,107740.0,107730.0,0.06738472]
[1751655044876,2.15769132,107740.0,107730.0,0.09517638]
[1751655045072,2.15769132,107740.0,107730.0,0.09417638]
[1751655045276,2.16069132,107740.0,107730.0,0.09417638]
[1751655046074,2.16069132,107740.0,107730.0,0.05713005]
[1751655046278,2.16069132,107740.0,107730.0,0.05725329]
[1751655049077,2.16069132,107740.0,107730.0,0.04330118]
[1751655049277,2.16069132,107740.0,107730.0,0.05731027]
[1751655051072,2.16069132,107740.0,107730.0,0.05731149]
[1751655054688,2.16069132,107740.0,107730.0,0.05731365]
[1751655055987,2.16069132,107740.0,107730.0,0.05731275]
[1751655058884,2.52149132,107740.0,107730.0,0.05731275]
[1751655059287,1.67753132,107740.0,107730.0,0.05731275]
[1751655059490,2.75649132,107740.0,107730.0,0.02952109]
[1751655060284,1.67853132,107740.0,107730.0,0.21512519]
[1751655060485,2.75653132,107740.0,107730.0,0.21512519]
[1751655060687,2.75757132,107740.0,107730.0,0.21512519]
[1751655060887,2.75457132,107740.0,107730.0,0.24291685]
[1751655061280,2.75157132,107740.0,107730.0,0.24291685]
[1751655061481,2.75357132,107740.0,107730.0,0.24291685]
[1751655062087,2.75257132,107740.0,107730.0,0.24291685]
[1751655062392,2.75357132,107740.0,107730.0,0.24291685]
[1751655064093,2.75257132,107740.0,107730.0,0.24291685]
[1751655064288,2.75257132,107740.0,107730.0,0.27996318]
[1751655064483,2.75357132,107740.0,107730.0,0.27996318]
[1751655064685,2.75257132,107740.0,107730.0,0.27996318]
[1751655064884,2.75357132,107740.0,107730.0,0.27996318]
[1751655065798,2.75257132,107740.0,107730.0,0.27996318]
[1751655066093,2.75357132,107740.0,107730.0,0.27996318]
[1751655066894,2.75257132,107740.0,107730.0,0.27996318]
[1751655067192,2.75357132,107740.0,107730.0,0.27996318]
[1751655067693,2.75257132,107740.0,107730.0,0.27996318]
[1751655067893,2.75357132,107740.0,107730.0,0.27996318]
[1751655068698,2.75357132,107740.0,107730.0,0.27982945]
[1751655068894,2.75257132,107740.0,107730.0,0.27982945]
[1751655069094,2.75357132,107740.0,107730.0,0.25203779]
[1751655069695,2.75357132,107740.0,107730.0,0.29772458]
[1751655069895,3.07841805,107740.0,107730.0,0.29772458]
[1751655070092,3.07841805,107740.0,107730.0,0.32862458]
[1751655070498,3.07941805,107740.0,107730.0,0.32862458]
[1751655071093,3.07841805,107740.0,107730.0,0.32862458]
[1751655071295,3.07941805,107740.0,107730.0,0.32862458]
[1751655071598,1.96767805,107740.0,107730.0,0.65444561]
[1751655071797,1.49487702,107740.0,107730.0,0.6855444]
[1751655071997,2.33839702,107740.0,107730.0,0.66196347]
[1751655072187,2.33835702,107740.0,107730.0,0.66196347]
[1751655072998,2.33135702,107740.0,107730.0,0.66096347]
[1751655073201,2.33735702,107740.0,107730.0,0.71760976]
[1751655073694,2.33635702,107740.0,107730.0,0.71760976]
[1751655074104,2.33735702,107740.0,107730.0,0.71760976]
[1751655074400,2.33635702,107740.0,107730.0,0.71760976]
[1751655074602,2.33635702,107740.0,107730.0,0.71760869]
[1751655075201,2.33635702,107740.0,107730.0,0.6619624]
[1751655075891,1.25755702,107740.0,107730.0,0.6619624]
[1751655076093,2.10083702,107740.0,107730.0,0.6619624]
[1751655076290,2.09983702,107740.0,107730.0,0.6619624]
[1751655076802,2.10083702,107740.0,107730.0,0.6619624]
[1751655076991,2.09983702,107740.0,107730.0,0.6619624]
[1751655077195,2.10083702,107740.0,107730.0,0.69904447]
[1751655077400,2.45083702,107740.0,107730.0,0.69904447]
[1751655077601,2.45083702,107740.0,107730.0,0.6988908]
[1751655077802,2.43328793,107740.0,107730.0,0.6988908]
[1751655078000,2.43328793,107740.0,107730.0,0.66180873]
[1751655078195,2.4501899,107740.0,107730.0,0.69888906]
[1751655078603,2.4501899,107740.0,107730.0,0.71745502]
[1751655078902,2.4511499,107740.0,107730.0,0.71745502]
[1751655080005,2.1011499,107740.0,107730.0,0.71745502]
[1751655080606,2.1001499,107740.0,107730.0,0.71745502]
[1751655080807,2.1011499,107740.0,107730.0,0.71745502]
[1751655081002,2.1001499,107740.0,107730.0,0.71745502]
[1751655081208,2.1011499,107740.0,107730.0,0.71745502]
[1751655081702,2.1001499,107740.0,107730.0,0.71745502]
[1751655081907,2.1011499,107740.0,107730.0,0.71745502]
[1751655082408,2.1332499,107740.0,107730.0,0.71745502]
[1751655082604,0.96418887,107740.0,107730.0,0.66180873]
[1751655082910,2.1330899,107740.0,107730.0,0.66180873]
[1751655083109,2.4640899,107740.0,107730.0,0.66180873]
[1751655083308,2.4630899,107740.0,107730.0,0.66180873]
[1751655083807,2.4640899,107740.0,107730.0,0.66180873]
[1751655084308,2.4640899,107740.0,107730.0,0.71745502]
[1751655084609,2.1340899,107740.0,107730.0,0.71745502]
[1751655084804,1.2900099,107740.0,107730.0,0.71745502]
[1751655085009,2.1340899,107740.0,107730.0,0.71745502]
[1751655085406,2.1340899,107740.0,107730.0,0.69030283]
[1751655085704,2.1340899,107740.0,107730.0,0.71743241]
[1751655085908,2.5030899,107740.0,107730.0,0.71743241]
[1751655086111,2.5040899,107740.0,107730.0,0.71743241]
[1751655086308,2.5040899,107740.0,107730.0,0.71742748]
[1751655086508,2.1340899,107740.0,107730.0,0.71742748]
[1751655086811,1.2910099,107740.0,107730.0,0.71742748]
[1751655087011,2.1340499,107740.0,107730.0,0.71742748]
[1751655087212,2.1340499,107740.0,107730.0,0.66178119]
[1751655087408,2.1330499,107740.0,107730.0,0.66178119]
[1751655087609,2.1340499,107740.0,107730.0,0.66178119]
[1751655087808,1.2900099,107740.0,107730.0,0.66178119]
[1751655088011,1.2910099,107740.0,107730.0,0.66178119]
[1751655088206,2.1340499,107740.0,107730.0,0.66178119]
[1751655088714,1.3221099,107740.0,107730.0,0.66178119]
[1751655089115,2.1651499,107740.0,107730.0,0.66178119]
[1751655089517,2.1651499,107740.0,107730.0,0.62978119]
[1751655090112,2.1651499,107740.0,107730.0,0.61606311]
[1751655090317,2.1651499,107740.0,107730.0,0.62978539]
[1751655090717,2.1651499,107740.0,107730.0,0.70392546]
[1751655090919,2.1961499,107740.0,107730.0,0.70392546]
[1751655091619,2.5361499,107740.0,107730.0,0.70392546]
[1751655091914,2.5351499,107740.0,107730.0,0.70392546]
[1751655092318,2.5361499,107740.0,107730.0,0.67282546]
[1751655093121,2.5361499,107740.0,107730.0,0.59868539]
[1751655093621,2.5351499,107740.0,107730.0,0.59868539]
[1751655093920,2.5361499,107740.0,107730.0,0.59868539]
[1751655094121,2.5361499,107740.0,107730.0,0.67282546]
[1751655094323,2.5351499,107740.0,107730.0,0.67282546]
[1751655094521,2.5361499,107740.0,107730.0,0.59868539]
[1751655095624,2.5351499,107740.0,107730.0,0.56778539]
[1751655095824,2.5361499,107740.0,107730.0,0.56778539]
[1751655096023,2.5361499,107740.0,107730.0,0.24196436]
[1751655096224,2.86197093,107740.0,107730.0,0.56778539]
[1751655099732,2.86197093,107740.0,107730.0,0.62346325]
[1751655101933,2.86197093,107740.0,107730.0,0.11203812]
[1751655102534,2.86197093,107740.0,107730.0,0.14917745]
[1751655102835,2.86197093,107740.0,107730.0,0.09349959]
[1751655104138,2.86197093,107740.0,107730.0,0.09350049]
[1751655106441,2.86197093,107740.0,107730.0,0.27910499]
[1751655107742,2.86197093,107740.0,107730.0,0.33478285]
[1751655108137,2.86197093,107740.0,107730.0,0.09350049]
[1751655108836,2.86197093,107740.0,107730.0,0.27910499]
[1751655109844,2.86197093,107740.0,107730.0,0.29764352]
[1751655112441,2.86197093,107740.0,107730.0,0.11203902]
[1751655112646,2.86197093,107740.0,107730.0,0.09347729]
[1751655115443,2.86197093,107740.0,107730.0,0.14915515]
[1751655115649,2.86197093,107740.0,107730.0,0.09347729]
[1751655121156,2.86197093,107740.0,107730.0,0.09376778]
[1751655124453,2.86197093,107740.0,107730.0,0.08447185]
[1751655126858,2.86144618,107740.0,107730.0,0.08447185]
[1751655127561,1.02576412,107740.0,107730.0,0.59589748]
[1751655127760,1.77456462,107740.0,107730.0,0.60519341]
[1751655128060,2.10038565,107740.0,107730.0,0.68965514]
[1751655128261,1.30156462,107740.0,107730.0,0.63397728]
[1751655128559,1.25738565,107740.0,107730.0,0.63397728]
[1751655128757,2.10038565,107740.0,107730.0,0.63397728]
[1751655129662,2.10038565,107740.0,107730.0,0.63368813]
[1751655130161,2.10038565,107740.0,107730.0,0.68931856]
[1751655130361,2.10028853,107740.0,107730.0,0.68931856]
[1751655131263,2.44028853,107740.0,107730.0,0.68931856]
[1751655131761,2.44028853,107740.0,107730.0,0.63368813]
[1751655131762,2.76610956,107740.0,107730.0,0.63368813]
[1751655132462,2.76610956,107740.0,107730.0,0.12664708]
[1751655132662,2.82960956,107740.0,107730.0,0.31225168]
[1751655133363,2.82960956,107740.0,107730.0,0.09344708]
[1751655133760,3.15543059,107740.0,107730.0,0.09344708]
[1751655134063,2.82960956,107740.0,107730.0,0.09344708]
[1751655135565,2.82960956,107740.0,107730.0,0.09363549]
[1751655135762,2.5038625,107740.0,107730.0,0.09363549]
[1751655137468,2.5038625,107740.0,107730.0,0.12145209]
[1751655137968,2.5038625,107740.0,107730.0,0.08436751]
[1751655138569,1.6608625,107740.0,107730.0,0.12145209]
[1751655138770,2.4130075,107740.0,107730.0,0.12145209]
[1751655138970,2.7389025,107740.0,107730.0,0.12145209]
[1751655139372,2.7389025,107740.0,107730.0,0.06650591]
[1751655139565,2.7389025,107740.0,107730.0,0.09373642]
[1751655140472,2.7389425,107740.0,107730.0,0.09373642]
[1751655141068,2.7389425,107740.0,107710.0,0.09770262]
[1751655141267,0.001,107690.0,107670.0,0.00185744]
[1751655141460,0.1867253,107660.0,107650.0,0.48069258]
[1751655141664,0.46392111,107660.0,107650.0,0.48069258]
[1751655141867,1.63697611,107660.0,107650.0,0.05375147]
[1751655142068,1.27617611,107660.0,107650.0,0.05375147]
[1751655142269,1.35147447,107660.0,107650.0,0.06763929]
[1751655142465,1.35147447,107660.0,107650.0,0.25338189]
[1751655142466,1.02453947,107660.0,107650.0,0.25338189]
[1751655142665,0.17741947,107660.0,107650.0,0.23949407]
[1751655142968,0.17741947,107660.0,107650.0,0.26949407]
[1751655143170,0.17841947,107660.0,107650.0,0.24049407]
[1751655143569,0.17841947,107660.0,107650.0,0.24149407]
[1751655144171,0.17841947,107660.0,107650.0,0.56738907]
[1751655144673,0.17741947,107660.0,107650.0,0.27229407]
[1751655144975,0.17941947,107660.0,107650.0,0.30439407]
[1751655145271,0.54021947,107660.0,107650.0,0.63028907]
[1751655145772,0.54021947,107660.0,107650.0,0.30439407]
[1751655146371,0.86611447,107660.0,107650.0,0.11865147]
[1751655147674,0.86611447,107660.0,107650.0,0.30439377]
[1751655148269,0.86411447,107660.0,107650.0,0.30339377]
[1751655148476,0.86511447,107660.0,107650.0,0.30239377]
[1751655149970,0.07629836,107660.0,107650.0,0.67828877]
[1751655150276,0.07629836,107660.0,107650.0,1.09908877]
[1751655150775,0.07629836,107660.0,107650.0,1.71486477]
[1751655150776,1e-08,107660.0,107650.0,1.71486477]
[1751655151874,1e-08,107660.0,107650.0,2.21486477]
[1751655156476,0.18572521,107660.0,107650.0,2.21486477]
[1751655156679,0.18572521,107660.0,107650.0,1.48908877]
[1751655156980,0.18572521,107660.0,107650.0,1.20987377]
[1751655157174,0.54652521,107660.0,107650.0,1.20987377]
[1751655157371,0.54652521,107660.0,107650.0,0.36239377]
[1751655157576,0.87242021,107660.0,107650.0,0.27179377]
[1751655157776,0.90322021,107660.0,107650.0,0.27179377]
[1751655158075,0.90322021,107660.0,107650.0,0.20889407]
[1751655158276,0.93332021,107660.0,107650.0,0.20889407]
[1751655159477,0.96602021,107660.0,107650.0,0.20889407]
[1751655162278,0.64012521,107660.0,107650.0,0.20889407]
[1751655165384,0.96602021,107660.0,107650.0,0.20889407]
[1751655166185,0.96602021,107660.0,107650.0,0.02315147]
[1751655166382,0.99234899,107660.0,107650.0,0.02315147]
[1751655166585,0.99234899,107660.0,107650.0,0.20889417]
[1751655167987,0.99234899,107660.0,107650.0,0.22314602]
[1751655168991,0.99234899,107660.0,107650.0,0.03740332]
[1751655169189,1.83914899,107660.0,107650.0,0.03740332]
[1751655169583,1.83914899,107660.0,107650.0,0.22314602]
[1751655170278,1.83914899,107660.0,107650.0,0.03740332]
[1751655172388,1.83914899,107660.0,107650.0,0.05109635]
[1751655173492,0.99234899,107660.0,107650.0,0.23683905]
[1751655173692,1.83886899,107660.0,107650.0,0.23683905]
[1751655173992,1.83886899,107660.0,107650.0,0.23683655]
[1751655175091,1.83886899,107660.0,107650.0,0.05109385]
[1751655176189,0.99234899,107660.0,107650.0,0.23683655]
[1751655176397,1.51285399,107660.0,107650.0,0.22314602]
[1751655176700,1.51285399,107660.0,107650.0,0.20889417]
[1751655176889,1.51277399,107660.0,107650.0,0.20889417]
[1751655177693,1.83866899,107660.0,107650.0,0.20889417]
[1751655178894,0.99234899,107660.0,107650.0,0.20889417]
[1751655179196,1.83862899,107660.0,107650.0,0.20889417]
[1751655179494,1.83862899,107660.0,107650.0,0.22317578]
[1751655182091,0.99234899,107660.0,107650.0,0.22317578]
[1751655182297,1.83830899,107660.0,107650.0,0.22317578]
[1751655182995,1.51233399,107660.0,107650.0,0.54907078]
[1751655183197,1.48223399,107660.0,107650.0,0.54907078]
[1751655183495,1.48323399,107660.0,107650.0,0.61037078]
[1751655183691,0.63735399,107660.0,107650.0,0.61037078]
[1751655183899,0.57385399,107660.0,107650.0,0.61037078]
[1751655184097,0.57285399,107660.0,107650.0,0.61037078]
[1751655184397,0.57385399,107660.0,107650.0,0.61037078]
[1751655185700,0.57285399,107660.0,107650.0,0.61037078]
[1751655185997,0.57385399,107660.0,107650.0,0.61037078]
[1751655186186,0.57285399,107660.0,107650.0,0.61037078]
[1751655186387,0.21305399,107660.0,107650.0,0.61037078]
[1751655186893,0.57385399,107660.0,107650.0,0.61037078]
[1751655187293,0.21305399,107660.0,107650.0,0.61037078]
[1751655187497,0.57385399,107660.0,107650.0,0.61037078]
[1751655187792,0.57285399,107660.0,107650.0,0.61037078]
[1751655187998,0.57385399,107660.0,107650.0,0.61037078]
[1751655189803,0.57385399,107660.0,107650.0,0.28447578]
[1751655190907,0.57285399,107660.0,107650.0,0.28471266]
[1751655191107,0.57385399,107660.0,107650.0,0.28471266]
[1751655191598,0.3608,107670.0,107660.0,0.1857254]
[1751655191794,0.3608,107670.0,107660.0,0.62183889]
[1751655191996,0.5465082,107670.0,107660.0,0.62183889]
[1751655192197,0.3608,107670.0,107660.0,0.62183889]
[1751655193203,0.3618,107670.0,107660.0,0.62483889]
[1751655194400,0.3618,107670.0,107660.0,0.62283889]
[1751655194605,0.3618,107670.0,107660.0,0.62383889]
[1751655199514,0.3618,107670.0,107660.0,0.64383889]
[1751655200013,0.3618,107670.0,107660.0,0.64376477]
[1751655200714,0.3618,107670.0,107660.0,0.62376477]
[1751655201215,0.3618,107670.0,107660.0,0.67376477]
[1751655206310,0.5475081,107670.0,107660.0,0.67376477]
[1751655206516,0.57196704,107670.0,107660.0,0.67376477]
[1751655206808,0.5475081,107670.0,107660.0,0.67376477]
[1751655207014,0.3618,107670.0,107660.0,0.67376477]
[1751655207814,0.38626056,107670.0,107660.0,0.67376477]
[1751655209114,0.57196866,107670.0,107660.0,0.67376477]
[1751655209314,0.57196866,107670.0,107660.0,0.62376477]
[1751655209523,0.60376866,107670.0,107660.0,0.62376477]
[1751655210722,0.63466866,107670.0,107660.0,0.62376477]
[1751655210923,0.44896056,107670.0,107660.0,0.64376477]
[1751655211820,0.63466866,107670.0,107660.0,0.62376477]
[1751655212124,0.63466866,107670.0,107660.0,0.20224186]
[1751655212525,0.6102081,107670.0,107660.0,0.20224186]
[1751655213224,0.63357587,107670.0,107660.0,0.52813686]
[1751655214226,0.44786777,107670.0,107660.0,0.52813686]
[1751655214830,0.63357587,107670.0,107660.0,0.52813686]
[1751655218025,0.63357587,107670.0,107660.0,0.53813686]
[1751655221838,0.44786777,107670.0,107660.0,0.53813686]
[1751655222338,0.63357587,107670.0,107660.0,0.59387538]
[1751655223839,0.63357587,107670.0,107660.0,0.59387526]
[1751655224537,0.44786777,107670.0,107660.0,0.59387526]
[1751655224732,0.44786777,107670.0,107660.0,0.62617526]
[1751655225538,0.63357597,107670.0,107660.0,0.62617526]
[1751655228438,0.44786777,107670.0,107660.0,0.62617526]
[1751655228639,0.44786777,107670.0,107660.0,0.65927526]
[1751655228832,0.63357597,107670.0,107660.0,0.65927526]
[1751655239852,0.63357597,107670.0,107660.0,0.98564986]
[1751655240056,0.44786777,107670.0,107660.0,0.98564986]
[1751655241055,0.63357597,107670.0,107660.0,0.98564986]
[1751655242155,0.44786777,107670.0,107660.0,0.98564986]
[1751655242957,0.63357597,107670.0,107660.0,0.98564986]
[1751655244552,0.63357597,107670.0,107660.0,0.33338026]
[1751655244757,0.63357597,107670.0,107660.0,0.98564986]
[1751655245460,0.44786777,107670.0,107660.0,0.98564986]
[1751655246055,0.63357597,107670.0,107660.0,0.98564986]
[1751655246859,0.44786777,107670.0,107660.0,0.98564986]
[1751655247059,0.63357597,107670.0,107660.0,0.98564986]
[1751655247559,0.6102082,107670.0,107660.0,0.98564986]
[1751655248455,0.4245,107670.0,107660.0,0.98564986]
[1751655249261,0.4245,107670.0,107660.0,1.21564986]
[1751655249556,0.001,107670.0,107660.0,1.57644986]
[1751655249761,0.37867608,107690.0,107680.0,0.1856909]
[1751655249965,0.37867608,107690.0,107680.0,0.92741967]
[1751655249966,0.563978,107690.0,107680.0,0.92741967]
[1751655250163,0.269078,107690.0,107680.0,0.8716851]
[1751655250358,0.269078,107690.0,107680.0,0.92736716]
[1751655250964,0.271078,107690.0,107680.0,0.92736716]
[1751655251660,0.277078,107690.0,107680.0,0.92836716]
[1751655251860,0.277078,107690.0,107680.0,0.92736716]
[1751655252064,0.277078,107690.0,107680.0,0.93233638]
[1751655252364,0.281078,107690.0,107680.0,0.93333638]
[1751655252961,0.6072128,107690.0,107680.0,0.93333638]
[1751655253157,0.6052128,107690.0,107680.0,0.60720158]
[1751655254663,0.67897108,107690.0,107680.0,0.60720158]
[1751655254857,0.67897108,107690.0,107680.0,0.55151952]
[1751655255062,0.67897108,107690.0,107680.0,0.60720158]
[1751655255764,0.67897108,107690.0,107680.0,0.60719921]
[1751655256267,1.03977108,107690.0,107680.0,0.54654793]
[1751655256469,1.03977108,107690.0,107680.0,0.58362731]
[1751655259067,1.03977108,107690.0,107680.0,0.39793641]
[1751655259278,1.03977108,107690.0,107680.0,0.58362731]
[1751655260167,1.03977108,107690.0,107680.0,0.39793641]
[1751655260467,1.03977108,107690.0,107680.0,0.63930937]
[1751655261668,1.03977108,107690.0,107680.0,0.07180254]
[1751655261965,2.26365108,107690.0,107680.0,0.25749344]
[1751655262163,2.26365108,107690.0,107680.0,0.58362824]
[1751655265868,2.26365108,107690.0,107680.0,0.6393103]
[1751655267371,2.26365108,107690.0,107680.0,0.07180254]
[1751655267573,2.26365108,107690.0,107680.0,0.07180294]
[1751655267767,2.26365108,107690.0,107680.0,0.25749384]
[1751655267964,2.26365108,107690.0,107680.0,0.58362864]
[1751655268571,2.26365108,107690.0,107680.0,0.54654926]
[1751655268778,2.26365108,107690.0,107680.0,0.22041446]
[1751655268977,2.26365108,107690.0,107680.0,0.54654926]
[1751655269274,2.24614678,107690.0,107680.0,0.23829213]
[1751655269677,2.24614678,107690.0,107680.0,0.2012062]
[1751655269978,2.24614678,107690.0,107680.0,0.20120634]
[1751655270176,2.24614678,107690.0,107680.0,0.23829314]
[1751655270679,2.24614678,107690.0,107680.0,0.56442794]
[1751655271072,2.24614678,107690.0,107680.0,0.52734114]
[1751655271975,2.24614678,107690.0,107680.0,0.20120634]
[1751655272179,2.24614678,107690.0,107680.0,0.52734114]
[1751655273373,2.24614678,107690.0,107680.0,0.56443247]
[1751655273877,2.24614678,107690.0,107680.0,0.23829767]
[1751655274875,2.24714678,107690.0,107680.0,0.23829767]
[1751655275382,2.24714678,107690.0,107680.0,0.56443247]
[1751655276375,1.88634678,107690.0,107680.0,0.56443247]
[1751655276577,2.24714678,107690.0,107680.0,0.23829772]
[1751655276778,2.24714678,107690.0,107680.0,0.56443252]
[1751655278281,2.24714678,107690.0,107680.0,0.23829772]
[1751655279685,2.24714678,107690.0,107680.0,0.01551549]
[1751655282285,1.86714678,107690.0,107680.0,0.01551549]
[1751655282685,2.18714678,107690.0,107680.0,0.01551549]
[1751655283886,2.21984678,107690.0,107680.0,0.01551549]
[1751655285291,2.21984678,107690.0,107680.0,0.01551613]
[1751655286892,1.85904678,107690.0,107680.0,0.01551613]
[1751655287190,2.58064678,107690.0,107680.0,0.01551613]
[1751655289795,2.58064678,107690.0,107680.0,0.05260746]
[1751655290492,2.58064678,107690.0,107680.0,0.23829836]
[1751655290989,2.25451198,107690.0,107680.0,0.20120703]
[1751655291288,2.58064678,107690.0,107680.0,0.20120703]
[1751655291785,2.58064678,107690.0,107680.0,0.23829836]
[1751655292689,2.58064678,107690.0,107680.0,0.20120703]
[1751655293294,2.58064678,107690.0,107680.0,0.01551613]
[1751655293993,2.58064678,107690.0,107680.0,0.05260746]
[1751655298401,2.58064678,107690.0,107680.0,0.23829836]
[1751655299103,2.58064678,107690.0,107680.0,0.05260746]
[1751655302600,0.1857081,107670.0,107660.0,0.2641463]
[1751655302793,1.3903081,107670.0,107660.0,0.73390932]
[1751655302999,0.1857081,107670.0,107660.0,1.06004412]
[1751655303203,0.5465081,107670.0,107660.0,1.06004412]
[1751655303799,0.5475081,107670.0,107660.0,0.73390932]
[1751655304001,0.5475081,107670.0,107660.0,1.06204412]
[1751655304199,0.5485081,107670.0,107660.0,1.06504412]
[1751655304499,0.5485081,107670.0,107660.0,0.79462126]
[1751655304905,0.5485081,107670.0,107660.0,1.12075606]
[1751655306608,0.5485081,107670.0,107660.0,1.06504412]
[1751655307708,0.5485081,107670.0,107660.0,0.7446531]
[1751655307910,0.1877081,107670.0,107660.0,0.7446531]
[1751655308110,0.5485081,107670.0,107660.0,0.7446531]
[1751655308810,0.8746429,107670.0,107660.0,0.7446531]
[1751655310508,0.8746429,107670.0,107660.0,0.4185183]
[1751655310711,0.8746429,107670.0,107660.0,0.7446531]
[1751655311507,0.5485081,107670.0,107660.0,1.0707879]
[1751655312514,0.5485081,107670.0,107660.0,1.14497057]
[1751655313114,0.5485081,107670.0,107660.0,1.0707879]
[1751655314114,0.8746429,107670.0,107660.0,0.8003587]
[1751655314509,0.8746429,107670.0,107660.0,0.81486328]
[1751655315312,0.8746429,107670.0,107660.0,1.14099808]
[1751655315714,0.5485081,107670.0,107660.0,1.14099808]
[1751655316812,0.5485081,107670.0,107660.0,0.81486328]
[1751655317315,0.8746429,107670.0,107660.0,0.81486328]
[1751655317616,0.8746429,107670.0,107660.0,0.8091195]
[1751655319312,0.8746429,107670.0,107660.0,0.81504324]
[1751655319517,0.8746429,107670.0,107660.0,0.8091195]
[1751655319718,0.9074429,107670.0,107660.0,0.8091195]
[1751655319918,0.9074429,107670.0,107660.0,0.80912683]
[1751655321519,0.5466429,107670.0,107660.0,0.80912683]
[1751655321819,0.9074429,107670.0,107660.0,0.80912683]
[1751655322016,0.9074429,107670.0,107660.0,0.73107771]
[1751655322420,0.9396429,107670.0,107660.0,0.73107771]
[1751655325920,0.9396429,107670.0,107660.0,0.73108273]
[1751655327625,0.9396429,107670.0,107660.0,0.66708273]
[1751655327821,1.3207429,107670.0,107660.0,0.66708273]
[1751655328126,1.3207429,107670.0,107660.0,0.6525658]
[1751655328530,1.3207429,107670.0,107660.0,0.326431]
[1751655328823,1.3207429,107670.0,107660.0,0.6525658]
[1751655329020,1.3207429,107670.0,107660.0,0.326431]
[1751655329221,1.3207429,107670.0,107660.0,0.2707254]
[1751655329419,1.3207429,107670.0,107660.0,0.005]
[1751655329623,1.3207429,107670.0,107660.0,0.246431]
[1751655329824,1.3207429,107670.0,107660.0,0.1907254]
[1751655330020,1.3207429,107670.0,107660.0,0.005]
[1751655330224,1.3207429,107670.0,107660.0,0.0607056]
[1751655330928,1.3207429,107670.0,107660.0,0.246431]
[1751655332536,1.3197429,107670.0,107660.0,0.243431]
[1751655332740,1.3257429,107670.0,107660.0,0.242431]
[1751655333036,1.3277429,107670.0,107660.0,0.242431]
[1751655333239,1.3277429,107670.0,107660.0,0.29389832]
[1751655334235,1.3277429,107670.0,107660.0,0.23819272]
[1751655334638,1.2977429,107670.0,107660.0,0.23819272]
[1751655335235,0.6516081,107670.0,107660.0,0.56432752]
[1751655335443,0.3698,107670.0,107660.0,0.9690294]
[1751655335644,0.5555082,107670.0,107660.0,1.0630294]
[1751655335848,0.5545082,107670.0,107660.0,1.0630294]
[1751655336143,0.3688,107670.0,107660.0,1.0630294]
[1751655336743,0.3698,107670.0,107660.0,1.0630294]
[1751655337144,0.3698,107670.0,107660.0,1.0073238]
[1751655337838,0.5555081,107670.0,107660.0,1.00751195]
[1751655338637,0.5555081,107670.0,107660.0,1.08169462]
[1751655338935,0.5555081,107670.0,107660.0,1.06320989]
[1751655339736,0.3698,107670.0,107660.0,1.06320989]
[1751655340245,0.3688,107670.0,107660.0,1.06320989]
[1751655340545,0.3698,107670.0,107660.0,1.06320989]
[1751655340741,0.5555082,107670.0,107660.0,1.06320989]
[1751655340934,0.881643,107670.0,107660.0,1.06320989]
[1751655343344,0.6959348,107670.0,107660.0,1.06320989]
[1751655344250,0.8816429,107670.0,107660.0,1.06320989]
[1751655345536,0.8816429,107670.0,107660.0,0.73707509]
[1751655345742,0.8816429,107670.0,107660.0,1.06320989]
[1751655346449,0.8806429,107670.0,107660.0,1.06320989]
[1751655346638,0.8816429,107670.0,107660.0,1.06320989]
[1751655347237,0.6959348,107670.0,107660.0,1.06320989]
[1751655347546,0.6959348,107670.0,107660.0,1.04869294]
[1751655347750,0.6959348,107670.0,107660.0,1.06320989]
[1751655348238,0.881643,107670.0,107660.0,1.06320989]
[1751655349062,0.6959348,107670.0,107660.0,1.06320989]
[1751655349557,0.881643,107670.0,107660.0,1.06320989]
[1751655350457,0.6959348,107670.0,107660.0,1.06320989]
[1751655351054,0.881643,107670.0,107660.0,1.06320989]
[1751655351254,0.880643,107670.0,107660.0,1.06320989]
[1751655351451,0.881643,107670.0,107660.0,1.06320989]
[1751655351857,0.6959348,107670.0,107660.0,1.06320989]
[1751655352656,0.881643,107670.0,107660.0,1.06320989]
[1751655352859,0.6959348,107670.0,107660.0,1.06320989]
[1751655354760,0.6949348,107670.0,107660.0,1.06320989]
[1751655354958,0.6959348,107670.0,107660.0,1.06320989]
[1751655356447,0.3698,107670.0,107660.0,1.06320989]
[1751655357050,0.3688,107670.0,107660.0,1.06320989]
[1751655357258,0.3698,107670.0,107660.0,1.06320989]
[1751655360260,0.3688,107670.0,107660.0,1.06320989]
[1751655360448,0.3698,107670.0,107660.0,1.06320989]
[1751655360649,0.3688,107670.0,107660.0,1.06320989]
[1751655360849,0.3698,107670.0,107660.0,1.24869294]
[1751655361357,0.3688,107670.0,107660.0,1.24869294]
[1751655361665,0.3698,107670.0,107660.0,1.26320977]
[1751655362168,0.3688,107670.0,107660.0,1.26320977]
[1751655362464,0.3698,107670.0,107660.0,1.26320977]
[1751655362663,0.008,107670.0,107660.0,1.2816945]
[1751655362966,0.009,107670.0,107660.0,1.2816945]
[1751655364161,0.008,107670.0,107660.0,1.2816945]
[1751655364463,0.009,107670.0,107660.0,1.2816945]
[1751655366355,0.8816429,107670.0,107660.0,0.6215597]
[1751655366566,0.9763429,107670.0,107660.0,0.2954249]
[1751655366757,0.9763429,107670.0,107660.0,0.54737703]
[1751655368762,0.9763429,107670.0,107660.0,0.6031079]
[1751655369467,0.6155429,107670.0,107660.0,0.6031079]
[1751655369668,0.9763429,107670.0,107660.0,0.6031079]
[1751655370668,0.9763429,107670.0,107660.0,0.2769731]
[1751655370865,0.9763429,107670.0,107660.0,0.6031079]
[1751655372062,0.9763429,107670.0,107660.0,0.9292427]
[1751655372268,0.6502081,107670.0,107660.0,0.9292427]
[1751655372862,0.9763429,107670.0,107660.0,0.9292427]
[1751655375257,0.0721,107670.0,107660.0,0.9292427]
[1751655375462,0.4329,107670.0,107660.0,0.9292427]
[1751655375663,0.0721,107670.0,107660.0,0.9907427]
[1751655375858,0.0721,107670.0,107660.0,1.0216427]
[1751655376466,0.0711,107670.0,107660.0,1.0216427]
[1751655376671,0.0721,107670.0,107660.0,1.0216427]
[1751655377769,0.2578082,107670.0,107660.0,1.0216427]
[1751655378970,0.583943,107670.0,107660.0,0.2769731]
[1751655379168,0.976743,107670.0,107660.0,0.6031079]
[1751655379469,0.6506082,107670.0,107660.0,0.6031079]
[1751655379669,0.976743,107670.0,107660.0,0.54737703]
[1751655379865,0.976743,107670.0,107660.0,0.27696766]
[1751655380068,0.976743,107670.0,107660.0,0.60310246]
[1751655383269,0.976743,107670.0,107660.0,0.60310289]